bitfinex/quotes_SOLUSD_20220208
["timestamp","ask_amount","ask_price","bid_price","bid_amount"]
[1644323274918,13.579,112.61,112.5,6.274]
[1644323275219,13.579,112.61,112.5,2.29484586]
[1644323275423,13.579,112.61,112.5,8.29484586]
[1644323275622,13.579,112.61,112.5,6.274]
[1644323275819,13.579,112.61,112.5,6.25]
[1644323276019,13.579,112.61,112.5,2.27084586]
[1644323276220,13.579,112.61,112.5,8.27084586]
[1644323276721,13.579,112.61,112.5,2.27084586]
[1644323277321,13.579,112.61,112.5,2.02084586]
[1644323277524,13.579,112.61,112.49,0.024]
[1644323277725,48.84276279,112.61,112.49,0.024]
[1644323277923,1.20696279,112.6,112.49,0.024]
[1644323278124,13.3354,112.57,112.49,2.04484586]
[1644323278323,13.3354,112.57,112.46,0.024]
[1644323278522,13.3354,112.57,112.44,3.24299762]
[1644323278723,13.3354,112.57,112.45,0.024]
[1644323279125,13.3354,112.57,112.45,3.26699762]
[1644323279324,13.3354,112.57,112.45,3.24299762]
[1644323279723,13.3311,112.59,112.45,2.02084586]
[1644323279924,13.3311,112.59,112.46,0.024]
[1644323280327,13.3311,112.59,112.46,2.04484586]
[1644323280529,13.3311,112.59,112.47,0.024]
[1644323280728,14.53806279,112.59,112.47,0.024]
[1644323280924,14.78806279,112.59,112.47,0.024]
[1644323281823,14.78806279,112.59,112.44,1.22215176]
[1644323281824,10.59,112.58,112.45,0.024]
[1644323282024,13.3393,112.55,112.45,0.024]
[1644323282224,13.3393,112.55,112.44,6.274]
[1644323283027,13.3393,112.55,112.44,0.274]
[1644323283225,13.3393,112.55,112.44,0.024]
[1644323284627,13.3393,112.55,112.43,2.02144002]
[1644323285229,23.9293,112.55,112.41,2.04544002]
[1644323285431,28.3743,112.55,112.42,0.024]
[1644323285631,28.3743,112.55,112.41,0.024]
[1644323285833,41.01699016,112.54,112.41,0.024]
[1644323286031,13.3468,112.51,112.41,0.024]
[1644323286231,10.59,112.5,112.41,0.024]
[1644323286428,5.0,112.48,112.38,0.024]
[1644323286630,20.037,112.47,112.36,0.024]
[1644323286830,15.037,112.47,112.34,6.54547]
[1644323287029,10.59,112.47,112.34,6.54547]
[1644323287228,10.59,112.47,112.35,0.024]
[1644323287629,24.4483,112.46,112.31,0.024]
[1644323287828,13.3508,112.45,112.31,0.024]
[1644323288232,13.3508,112.45,112.32,2.02342277]
[1644323288430,47.635,112.53,112.34,0.44]
[1644323288629,47.635,112.53,112.35,64.31]
[1644323288831,47.635,112.53,112.36,0.44]
[1644323289031,60.9766,112.53,112.37,23.9294]
[1644323289231,24.9,112.55,112.37,121.52442546]
[1644323289532,24.9,112.55,112.38,30.76344823]
[1644323289732,24.9,112.55,112.39,0.024]
[1644323289957,24.9,112.55,112.39,12.63759795]
[1644323290137,24.9,112.55,112.4,2.04759795]
[1644323290338,13.3386,112.54,112.4,0.024]
[1644323290542,24.0927,112.53,112.39,0.024]
[1644323290740,24.3427,112.53,112.39,0.024]
[1644323291140,34.9327,112.53,112.39,0.024]
[1644323291341,37.04045549,112.53,112.38,0.024]
[1644323291741,34.9327,112.53,112.38,0.024]
[1644323292041,24.0927,112.53,112.39,2.02359795]
[1644323292240,24.9,112.55,112.4,0.024]
[1644323292440,24.9,112.55,112.41,10.59]
[1644323292641,24.9,112.55,112.42,0.024]
[1644323292940,24.9,112.55,112.42,22.06859795]
[1644323293143,24.9,112.55,112.43,2.04759795]
[1644323293346,13.3362,112.56,112.43,2.29759795]
[1644323293543,13.3362,112.56,112.44,2.02359795]
[1644323293740,13.3362,112.56,112.44,2.27359795]
[1644323293944,13.3362,112.56,112.44,2.02359795]
[1644323294241,13.3362,112.56,112.44,0.25]
[1644323294640,13.5862,112.56,112.44,0.25]
[1644323294842,13.3362,112.56,112.44,0.25]
[1644323295045,13.3362,112.56,112.45,2.02359795]
[1644323295242,13.3362,112.56,112.45,2.29759795]
[1644323295243,19.82789,112.56,112.45,2.29759795]
[1644323295541,6.49169,112.56,112.46,2.02359795]
[1644323295747,6.49169,112.56,112.46,12.86359795]
[1644323295944,24.3503,112.59,112.46,12.86359795]
[1644323296143,1.20696279,112.62,112.47,2.04759795]
[1644323296341,50.18906279,112.63,112.48,0.024]
[1644323296542,13.3289,112.62,112.48,11.42259795]
[1644323296743,13.3289,112.62,112.49,2.04759795]
[1644323296943,13.3289,112.62,112.5,0.024]
[1644323297143,48.9821,112.63,112.5,2.04759795]
[1644323297342,55.47379,112.63,112.51,2.02359795]
[1644323297561,55.47379,112.63,112.51,10.40959795]
[1644323297862,55.47379,112.63,112.51,10.65959795]
[1644323298061,55.47379,112.63,112.51,8.636]
[1644323298467,55.72379,112.63,112.51,8.636]
[1644323298663,55.72379,112.63,112.51,0.25]
[1644323298865,55.72379,112.63,112.5,10.864]
[1644323299265,55.47379,112.63,112.5,12.88759795]
[1644323299465,6.49169,112.63,112.5,18.88759795]
[1644323299864,6.49169,112.63,112.5,32.21189795]
[1644323300066,1.20696279,112.65,112.5,32.21189795]
[1644323300264,1.20696279,112.66,112.5,32.21189795]
[1644323300465,47.8453,112.67,112.5,32.21189795]
[1644323300466,49.05226279,112.67,112.5,32.21189795]
[1644323301366,1.20696279,112.66,112.5,32.21189795]
[1644323301665,6.49169,112.65,112.5,32.21189795]
[1644323302069,62.37596279,112.67,112.5,32.21189795]
[1644323302266,68.86765279,112.67,112.5,32.21189795]
[1644323302465,67.86765279,112.67,112.5,32.21189795]
[1644323303368,69.97540828,112.67,112.5,32.21189795]
[1644323303572,63.48371828,112.67,112.5,32.21189795]
[1644323303769,1.20696279,112.66,112.5,32.21189795]
[1644323303968,13.325,112.66,112.5,32.21189795]
[1644323304171,48.05226279,112.67,112.5,85.49189795]
[1644323304369,46.8453,112.67,112.5,99.48075968]
[1644323304769,46.8453,112.67,112.51,4.441]
[1644323304969,1.20696279,112.69,112.54,13.3202]
[1644323305170,1.20696279,112.69,112.55,10.59]
[1644323305372,1.20696279,112.69,112.55,12.61359795]
[1644323305571,1.20696279,112.7,112.55,16.84]
[1644323305770,1.20696279,112.71,112.56,2.02359795]
[1644323305971,1.20696279,112.71,112.57,10.59]
[1644323306174,3.31471828,112.71,112.57,28.143]
[1644323306372,3.31471828,112.71,112.57,22.143]
[1644323306572,1.20696279,112.7,112.57,22.143]
[1644323306770,1.45696279,112.71,112.57,22.143]
[1644323306972,0.25,112.71,112.57,22.143]
[1644323307376,13.5691,112.71,112.58,2.02359795]
[1644323307674,24.78386279,112.72,112.59,10.59]
[1644323308075,3.31471828,112.71,112.56,2.02185101]
[1644323308273,13.3206,112.69,112.55,10.59]
[1644323308475,14.52756279,112.69,112.54,38.0082]
[1644323308677,2.10775549,112.68,112.54,24.7475]
[1644323309074,2.35775549,112.68,112.54,24.7475]
[1644323309476,2.35775549,112.68,112.54,35.3375]
[1644323309675,13.3229,112.67,112.54,35.3375]
[1644323310176,13.3229,112.67,112.54,34.3375]
[1644323310377,2.10775549,112.66,112.51,10.59]
[1644323310578,2.10775549,112.66,112.5,0.024]
[1644323310579,26.93985549,112.66,112.5,0.024]
[1644323310777,13.3281,112.63,112.5,0.024]
[1644323310977,22.3301,112.63,112.5,0.024]
[1644323311380,13.3281,112.63,112.5,0.024]
[1644323311678,13.3281,112.63,112.49,0.024]
[1644323312076,13.5781,112.63,112.49,2.04585101]
[1644323313181,13.5781,112.63,112.49,8.04585101]
[1644323313582,15.68585549,112.63,112.49,8.04585101]
[1644323313788,24.1681,112.63,112.49,6.024]
[1644323313983,24.1681,112.63,112.5,2.02185101]
[1644323314183,24.1681,112.63,112.5,2.27185101]
[1644323314384,13.5781,112.63,112.5,12.86185101]
[1644323314587,72.4205,112.64,112.5,18.86185101]
[1644323314788,72.4205,112.64,112.51,52.82585101]
[1644323314986,72.4205,112.64,112.51,63.41585101]
[1644323315185,72.4205,112.64,112.52,2.02185101]
[1644323315385,72.4205,112.64,112.52,12.61185101]
[1644323315587,72.4205,112.64,112.52,16.59]
[1644323315786,13.3274,112.63,112.52,10.59]
[1644323316301,13.3274,112.63,112.52,0.25]
[1644323316491,13.3274,112.63,112.5,12.61185101]
[1644323316692,13.3274,112.63,112.5,18.61185101]
[1644323316892,15.43515549,112.63,112.5,8.02185101]
[1644323317091,13.3274,112.63,112.49,0.024]
[1644323317292,13.3313,112.6,112.49,0.024]
[1644323317500,13.3313,112.6,112.48,6.0]
[1644323317695,13.3313,112.6,112.47,10.614]
[1644323317696,13.3313,112.6,112.47,16.614]
[1644323318097,23.7666,112.61,112.47,16.614]
[1644323318501,23.7666,112.61,112.48,6.53733]
[1644323318701,25.87435549,112.61,112.48,6.56133]
[1644323318903,25.87435549,112.61,112.48,0.024]
[1644323319100,25.87435549,112.61,112.47,16.614]
[1644323319300,27.33131828,112.61,112.47,16.614]
[1644323319699,40.66171828,112.61,112.47,16.614]
[1644323320499,51.25171828,112.61,112.47,12.63585101]
[1644323320698,51.25171828,112.61,112.47,18.63585101]
[1644323320899,51.25171828,112.61,112.47,12.63585101]
[1644323321102,61.75471828,112.61,112.47,0.024]
[1644323321300,13.3378,112.56,112.47,0.024]
[1644323321505,60.1556,112.56,112.43,8.58608101]
[1644323321699,74.18535549,112.56,112.43,6.54023]
[1644323321902,84.77535549,112.56,112.43,6.56423]
[1644323322100,5.65096279,112.55,112.43,6.56423]
[1644323322299,10.59,112.54,112.43,6.54023]
[1644323322499,13.343,112.52,112.43,6.54023]
[1644323322703,35.388,112.52,112.43,6.54023]
[1644323323103,23.933,112.52,112.43,6.54023]
[1644323324518,24.183,112.52,112.43,6.54023]
[1644323324918,24.183,112.52,112.43,8.56208101]
[1644323325119,24.183,112.52,112.43,6.54023]
[1644323325319,4.76345585,112.51,112.43,6.54023]
[1644323325519,13.3509,112.49,112.43,6.54023]
[1644323325720,10.59,112.48,112.43,6.54023]
[1644323326721,13.3477,112.47,112.34,0.024]
[1644323326918,10.59,112.46,112.33,6.57006]
[1644323327320,10.59,112.46,112.33,8.84191101]
[1644323328421,13.3506,112.43,112.33,6.57006]
[1644323328622,23.9406,112.43,112.33,6.54606]
[1644323329922,23.9406,112.43,112.3,0.024]
[1644323330123,48.0081,112.43,112.3,0.024]
[1644323330324,48.0081,112.43,112.3,2.04585101]
[1644323330524,2.10775549,112.42,112.3,0.024]
[1644323330724,13.3587,112.39,112.3,0.024]
[1644323330923,13.3587,112.39,112.28,0.44514318]
[1644323331330,13.3587,112.39,112.29,2.02185101]
[1644323331734,13.6087,112.39,112.29,6.0]
[1644323331936,13.6087,112.39,112.28,0.44514318]
[1644323332537,34.4287,112.39,112.28,0.44514318]
[1644323333335,36.53645549,112.39,112.28,0.44514318]
[1644323333935,34.4287,112.39,112.28,0.44514318]
[1644323334336,6.49169,112.38,112.28,0.44514318]
[1644323334534,13.3618,112.35,112.28,0.44514318]
[1644323335541,33.6188,112.35,112.28,0.44514318]
[1644323335939,6.49169,112.34,112.28,0.44514318]
[1644323336139,23.9578,112.33,112.28,0.44514318]
[1644323337038,13.3678,112.33,112.28,0.44514318]
[1644323337239,6.49169,112.34,112.28,0.44514318]
[1644323337652,71.7572,112.46,112.29,2.02459164]
[1644323337841,71.7572,112.46,112.29,27.98560371]
[1644323337842,126.8554,112.46,112.29,27.98560371]
[1644323338041,10.59,112.49,112.3,14.43599745]
[1644323338341,10.59,112.5,112.31,15.062]
[1644323338541,13.347,112.48,112.32,0.024]
[1644323338744,23.937,112.48,112.32,10.614]
[1644323338943,23.937,112.48,112.33,0.024]
[1644323339541,28.385,112.48,112.33,0.024]
[1644323339943,76.8039,112.48,112.33,0.024]
[1644323340342,76.8039,112.48,112.33,10.614]
[1644323340544,10.43761059,112.53,112.34,2.03884244]
[1644323340545,13.3438,112.51,112.34,2.03884244]
[1644323340742,13.3438,112.51,112.35,10.614]
[1644323340943,13.3438,112.51,112.36,0.024]
[1644323341346,13.3438,112.51,112.37,10.59]
[1644323341543,13.3438,112.51,112.37,10.614]
[1644323341744,13.3459,112.49,112.37,0.274]
[1644323341946,23.9359,112.49,112.36,0.024]
[1644323342144,23.9359,112.49,112.34,0.024]
[1644323342543,26.04365549,112.49,112.34,0.024]
[1644323342942,28.3829,112.49,112.34,0.024]
[1644323343144,28.6329,112.49,112.34,0.024]
[1644323343644,18.0429,112.49,112.34,12.61927777]
[1644323343847,13.5959,112.49,112.34,25.96377777]
[1644323344044,13.5959,112.49,112.34,31.96377777]
[1644323344246,13.5959,112.49,112.34,23.15947]
[1644323344549,10.59,112.48,112.34,23.15947]
[1644323344845,13.3491,112.47,112.34,23.15947]
[1644323345044,15.45685549,112.47,112.34,23.15947]
[1644323345246,15.45685549,112.47,112.34,17.15947]
[1644323345445,13.3491,112.47,112.34,17.15947]
[1644323345645,13.3491,112.47,112.35,2.00527777]
[1644323346249,13.3491,112.47,112.35,12.59527777]
[1644323347054,13.3491,112.47,112.34,6.56947]
[1644323347250,36.0391,112.47,112.34,6.024]
[1644323347453,13.3556,112.43,112.34,0.024]
[1644323347751,36.2376,112.43,112.34,6.54547]
[1644323347951,38.34535549,112.43,112.34,6.54547]
[1644323348155,36.4876,112.43,112.34,6.54547]
[1644323348351,24.1956,112.43,112.34,6.54547]
[1644323350177,10.84,112.43,112.34,6.54547]
[1644323350978,75.4797,112.46,112.34,6.54547]
[1644323350979,71.0317,112.46,112.34,6.54547]
[1644323351177,81.6217,112.46,112.35,2.00527777]
[1644323351378,81.6217,112.46,112.36,6.54431]
[1644323351777,2.10775549,112.45,112.36,6.54431]
[1644323351978,10.59,112.44,112.36,6.54431]
[1644323352180,10.84,112.44,112.36,6.54431]
[1644323352379,10.59,112.44,112.33,2.00527777]
[1644323352581,81.6217,112.46,112.33,2.00527777]
[1644323352780,81.6217,112.46,112.33,13.20027777]
[1644323353079,13.3504,112.45,112.33,13.22427777]
[1644323353279,13.3504,112.45,112.33,13.20027777]
[1644323353480,13.3504,112.45,112.33,19.74633777]
[1644323353679,13.6004,112.45,112.33,17.49106]
[1644323353881,13.6004,112.45,112.33,6.54606]
[1644323354280,24.1904,112.45,112.33,6.54606]
[1644323354478,28.6384,112.45,112.33,6.54606]
[1644323354883,29.84536279,112.45,112.33,6.54606]
[1644323355181,28.3884,112.45,112.33,6.54606]
[1644323355582,23.9404,112.45,112.33,6.54606]
[1644323355781,23.9379,112.47,112.33,8.55646668]
[1644323355982,1.20696279,112.49,112.34,63.87]
[1644323356183,1.20696279,112.5,112.38,0.44]
[1644323356382,1.20696279,112.52,112.38,22.1001]
[1644323356583,1.20696279,112.54,112.39,62.19600668]
[1644323356882,1.20696279,112.54,112.39,62.42200668]
[1644323357082,1.20696279,112.54,112.4,2.03440668]
[1644323357287,1.20696279,112.54,112.41,10.59]
[1644323357518,1.20696279,112.54,112.41,21.15340668]
[1644323357709,1.20696279,112.54,112.42,2.01040668]
[1644323357909,1.20696279,112.55,112.42,12.60040668]
[1644323358110,1.20696279,112.56,112.42,18.85040668]
[1644323358308,1.20696279,112.56,112.43,2.01040668]
[1644323358708,1.20696279,112.56,112.43,8.26040668]
[1644323358909,14.54366279,112.56,112.43,21.59570668]
[1644323359112,14.79366279,112.56,112.43,21.34570668]
[1644323359311,14.79366279,112.56,112.43,8.01040668]
[1644323359510,1.20696279,112.55,112.43,8.01040668]
[1644323359711,1.20696279,112.55,112.43,6.0]
[1644323360114,1.20696279,112.54,112.41,6.0]
[1644323360311,11.79696279,112.54,112.41,6.0]
[1644323360711,25.13576279,112.54,112.4,8.02476847]
[1644323360910,25.13576279,112.54,112.4,2.02476847]
[1644323361113,23.9288,112.54,112.4,8.02476847]
[1644323361329,25.13576279,112.54,112.4,8.02476847]
[1644323362730,25.38576279,112.54,112.4,8.02476847]
[1644323363733,25.38576279,112.54,112.4,2.02476847]
[1644323363933,1.20696279,112.53,112.4,0.024]
[1644323364136,13.3457,112.5,112.39,0.024]
[1644323364333,13.3457,112.5,112.38,0.024]
[1644323364533,13.3457,112.5,112.36,0.024]
[1644323364534,4.446,112.49,112.36,0.024]
[1644323364837,10.59,112.48,112.36,0.024]
[1644323365038,12.69775549,112.48,112.34,0.024]
[1644323365237,2.10775549,112.47,112.33,0.024]
[1644323365443,10.59,112.46,112.33,0.024]
[1644323365634,59.7366,112.46,112.31,0.024]
[1644323365834,64.1846,112.46,112.31,0.024]
[1644323366838,78.74086279,112.46,112.31,0.024]
[1644323367038,80.84861828,112.46,112.31,0.024]
[1644323367240,1.20696279,112.44,112.3,0.024]
[1644323367437,16.24596279,112.43,112.3,0.024]
[1644323367639,15.039,112.43,112.29,6.54839]
[1644323367837,10.59,112.43,112.3,0.024]
[1644323368038,10.84,112.43,112.3,6.57181]
[1644323368237,10.84,112.43,112.31,0.024]
[1644323368238,13.3592,112.4,112.31,0.024]
[1644323368636,13.3592,112.4,112.3,6.54781]
[1644323368939,13.3592,112.4,112.29,2.02476847]
[1644323369138,13.3592,112.4,112.29,8.54915847]
[1644323369341,23.9492,112.4,112.3,2.00076847]
[1644323369538,23.9492,112.4,112.3,6.54781]
[1644323369738,23.9492,112.4,112.31,6.54722]
[1644323370741,23.9424,112.42,112.32,2.00076847]
[1644323370939,13.3524,112.42,112.32,2.02476847]
[1644323371939,13.3524,112.42,112.32,0.024]
[1644323372140,13.3524,112.42,112.33,2.00076847]
[1644323373541,13.6024,112.42,112.33,2.00076847]
[1644323375945,0.25,112.42,112.33,2.00076847]
[1644323376143,0.25,112.42,112.33,8.79682847]
[1644323376446,10.59,112.46,112.34,1.99967818]
[1644323376644,11.79696279,112.48,112.35,17.13489]
[1644323376943,6.91156068,112.51,112.36,1.99967818]
[1644323376944,1.20696279,112.5,112.36,1.99967818]
[1644323377144,13.3427,112.5,112.37,6.54373]
[1644323377344,13.3427,112.5,112.38,10.59]
[1644323377544,13.3427,112.5,112.39,6.54256]
[1644323377745,1.20696279,112.53,112.39,8.79223818]
[1644323377948,1.20696279,112.53,112.4,0.024]
[1644323378145,1.20696279,112.54,112.41,10.59]
[1644323378344,1.20696279,112.55,112.41,32.72007818]
[1644323378544,1.20696279,112.55,112.42,1.99967818]
[1644323378746,45.67076279,112.56,112.43,10.59]
[1644323379043,45.67076279,112.56,112.43,27.91690818]
[1644323379445,45.67076279,112.56,112.43,28.16690818]
[1644323379845,13.3377,112.54,112.44,13.3363]
[1644323380248,1.20696279,112.57,112.45,1.99967818]
[1644323380648,1.20696279,112.57,112.44,13.3363]
[1644323380849,13.3354,112.56,112.44,13.3363]
[1644323381047,14.54236279,112.56,112.44,13.3363]
[1644323381250,13.3354,112.56,112.44,13.3363]
[1644323381648,13.3354,112.56,112.44,15.33597818]
[1644323381849,13.5854,112.56,112.44,13.3363]
[1644323382148,13.5854,112.56,112.45,1.99967818]
[1644323382348,13.5854,112.56,112.44,13.3363]
[1644323382850,13.3354,112.56,112.44,15.58597818]
[1644323383052,13.3354,112.56,112.44,32.17597818]
[1644323383749,13.3354,112.56,112.44,10.59]
[1644323383949,25.13236279,112.56,112.42,13.3382]
[1644323384149,25.13236279,112.56,112.42,13.5882]
[1644323384450,23.9254,112.56,112.42,15.58787818]
[1644323384649,23.9254,112.56,112.42,13.5882]
[1644323384851,25.38236279,112.56,112.42,15.58787818]
[1644323385049,24.1754,112.56,112.42,15.58787818]
[1644323385662,24.1754,112.56,112.42,13.5882]
[1644323385853,25.38236279,112.56,112.42,13.5882]
[1644323386050,24.1754,112.56,112.42,13.5882]
[1644323386352,24.1754,112.56,112.42,23.9282]
[1644323386650,25.38236279,112.56,112.42,23.9282]
[1644323387350,25.38236279,112.56,112.42,25.92787818]
[1644323387560,24.1754,112.56,112.42,25.92787818]
[1644323388053,25.38236279,112.56,112.41,77.5809]
[1644323388255,38.16936279,112.56,112.41,77.8309]
[1644323388452,1.20696279,112.55,112.41,77.8309]
[1644323388653,13.342,112.5,112.39,22.8938]
[1644323388853,13.342,112.5,112.38,72.9232]
[1644323389253,13.342,112.5,112.38,72.8992]
[1644323389851,13.342,112.5,112.36,13.3689]
[1644323390053,13.342,112.5,112.37,0.024]
[1644323390455,23.932,112.5,112.37,0.024]
[1644323390657,52.9934,112.5,112.36,0.024]
[1644323390855,63.3404,112.5,112.34,0.024]
[1644323391054,1.20696279,112.48,112.34,0.024]
[1644323391252,13.3528,112.44,112.34,0.024]
[1644323391454,22.2928,112.44,112.33,72.017]
[1644323391952,22.2928,112.44,112.33,23.9575]
[1644323392152,22.5428,112.44,112.33,23.7075]
[1644323392353,22.5428,112.44,112.33,23.9575]
[1644323392553,22.5428,112.44,112.33,23.7075]
[1644323392752,22.5428,112.44,112.33,23.9575]
[1644323392964,22.5428,112.44,112.33,23.7075]
[1644323393955,13.6028,112.44,112.33,23.7075]
[1644323394455,24.1928,112.44,112.32,0.024]
[1644323395256,23.9428,112.44,112.32,0.024]
[1644323396158,33.2058,112.44,112.32,0.024]
[1644323396855,13.3562,112.4,112.32,0.024]
[1644323397055,25.9832,112.4,112.3,0.024]
[1644323397258,25.9832,112.4,112.28,22.35826463]
[1644323397657,25.9832,112.4,112.28,22.60826463]
[1644323397955,25.9832,112.4,112.28,22.35826463]
[1644323398758,26.2332,112.4,112.28,22.35826463]
[1644323399358,13.6062,112.4,112.28,28.35826463]
[1644323399759,13.6062,112.4,112.29,10.59]
[1644323399960,13.3514,112.42,112.31,13.3517]
[1644323400156,13.3514,112.42,112.32,6.57064]
[1644323400358,13.3514,112.42,112.32,8.55629145]
[1644323400559,13.3514,112.42,112.32,14.55629145]
[1644323400959,13.3514,112.42,112.32,8.55629145]
[1644323401362,13.6014,112.42,112.32,8.55629145]
[1644323403662,13.6014,112.42,112.32,6.57064]
[1644323403863,13.6014,112.42,112.32,6.54664]
[1644323404064,13.3514,112.42,112.32,6.54664]
[1644323404261,13.3514,112.42,112.33,1.98565145]
[1644323404461,13.3514,112.42,112.34,6.54547]
[1644323408967,67.7992,112.45,112.34,8.53112145]
[1644323409167,67.7992,112.45,112.34,8.80512145]
[1644323409368,23.2986,112.45,112.34,8.80512145]
[1644323409566,4.448,112.48,112.34,14.80512145]
[1644323409767,49.34016279,112.49,112.35,0.024]
[1644323409968,93.82446279,112.49,112.35,23.9593]
[1644323410167,44.4843,112.49,112.36,8.55396145]
[1644323410369,44.4843,112.49,112.37,10.59]
[1644323410568,13.3453,112.47,112.38,6.54314]
[1644323410771,13.3453,112.47,112.38,8.77879145]
[1644323411168,0.25,112.47,112.38,8.77879145]
[1644323411571,45.68396279,112.51,112.38,8.77879145]
[1644323411769,13.3428,112.49,112.39,1.98565145]
[1644323411970,13.3428,112.49,112.4,6.54198]
[1644323412470,13.3428,112.49,112.4,6.79198]
[1644323412670,13.3428,112.49,112.4,6.54198]
[1644323412870,13.3428,112.49,112.4,6.79198]
[1644323413070,13.3404,112.51,112.4,6.54198]
[1644323413273,13.3404,112.51,112.4,8.77291019]
[1644323413674,1.20696279,112.53,112.4,38.70241019]
[1644323413872,1.20696279,112.54,112.4,38.70241019]
[1644323414075,1.20696279,112.54,112.4,77.92844976]
[1644323414273,1.20696279,112.55,112.4,77.92844976]
[1644323414474,1.20696279,112.56,112.4,77.92844976]
[1644323414674,1.20696279,112.55,112.4,77.92844976]
[1644323414873,14.54266279,112.55,112.4,77.92844976]
[1644323415073,1.20696279,112.54,112.4,77.92844976]
[1644323415274,14.79266279,112.55,112.4,77.92844976]
[1644323415573,14.79266279,112.55,112.4,89.29444976]
[1644323415878,13.5857,112.55,112.4,89.29444976]
[1644323416073,13.5857,112.55,112.4,82.75246976]
[1644323416273,14.79266279,112.55,112.4,82.75246976]
[1644323417500,14.79266279,112.55,112.4,136.03246976]
[1644323417682,13.5857,112.55,112.4,136.03246976]
[1644323418579,13.5857,112.55,112.4,82.75246976]
[1644323418787,1.20696279,112.56,112.4,136.03246976]
[1644323418980,1.20696279,112.56,112.4,277.32129225]
[1644323419582,1.20696279,112.57,112.42,53.28]
[1644323419782,1.20696279,112.59,112.46,53.28]
[1644323419980,1.20696279,112.6,112.47,10.59]
[1644323420183,1.20696279,112.6,112.47,18.82093019]
[1644323420382,1.23824738,112.61,112.48,1.98093019]
[1644323420583,1.20696279,112.61,112.49,11.03]
[1644323420783,1.20696279,112.64,112.5,132.34]
[1644323420984,1.20696279,112.65,112.52,0.44]
[1644323421184,4.9197098,112.68,112.53,10.59]
[1644323421185,1.20696279,112.68,112.53,10.59]
[1644323421382,6.49169,112.67,112.53,10.59]
[1644323421582,6.49169,112.67,112.53,18.82093019]
[1644323421787,5.99169,112.67,112.54,15.29893019]
[1644323421986,5.99169,112.67,112.55,10.59]
[1644323422185,5.99169,112.67,112.55,18.81383398]
[1644323422383,5.99169,112.67,112.55,44.13407355]
[1644323422588,5.99169,112.67,112.56,1.97383398]
[1644323422783,5.99169,112.67,112.57,10.59]
[1644323422983,1.20696279,112.69,112.57,10.59]
[1644323423188,1.20696279,112.7,112.57,18.81383398]
[1644323423385,14.52456279,112.71,112.57,18.81383398]
[1644323423585,13.3193,112.7,112.57,16.84]
[1644323423787,13.3193,112.7,112.57,10.84]
[1644323423984,13.3193,112.7,112.57,18.81383398]
[1644323424186,13.3193,112.7,112.57,12.81383398]
[1644323424388,14.52626279,112.7,112.57,10.59]
[1644323424788,18.96526279,112.7,112.57,10.84]
[1644323425004,17.7583,112.7,112.57,10.84]
[1644323425185,18.0083,112.7,112.57,10.84]
[1644323425785,18.0083,112.7,112.57,10.59]
[1644323425985,18.0083,112.7,112.55,13.321]
[1644323425986,44.3276727,112.7,112.55,10.59]
[1644323426187,51.68563549,112.7,112.55,6.0]
[1644323426390,13.325,112.65,112.55,6.0]
[1644323426590,13.325,112.65,112.54,6.0]
[1644323426791,13.325,112.65,112.53,10.59]
[1644323428796,13.325,112.65,112.53,12.55916696]
[1644323429193,0.03128957,112.66,112.53,12.80916696]
[1644323429696,0.03128957,112.66,112.53,51.53310879]
[1644323429894,0.03128957,112.68,112.53,57.53310879]
[1644323430094,0.03128957,112.68,112.53,70.85570879]
[1644323430296,0.03128957,112.7,112.55,44.3924]
[1644323430495,0.03128957,112.67,112.56,10.59]
[1644323430695,62.85096279,112.71,112.56,18.80916696]
[1644323430896,61.644,112.71,112.57,1.96916696]